fUST/lending_fUST_20250921
["ID","MTS","AMOUNT","RATE_DAILY","PERIOD"]
[386652460,1758450851154,-160.0,0.00019074,2]
[386652462,1758450880528,-355.2692602,0.00019073,2]
[386652463,1758450880556,-195.41885864,0.00019073,2]
[386652464,1758450880586,-500.0,0.00019073,2]
[386652465,1758450880616,-500.0,0.00019073,2]
[386652466,1758450880646,-627.59237624,0.00019073,2]
[386652467,1758450880678,-250.0,0.00019073,2]
[386652468,1758450880707,-500.0,0.00019073,2]
[386652469,1758450880738,-363.89814212,0.00019073,2]
[386652470,1758450880771,-500.0,0.00019073,2]
[386652471,1758450880800,-500.0,0.00019073,2]
[386652472,1758450880831,-500.0,0.00019073,2]
[386652473,1758450880960,-500.0,0.00019073,2]
[386652474,1758450880988,-500.0,0.00019073,2]
[386652475,1758450881017,-500.0,0.00019073,2]
[386652476,1758450881050,-500.0,0.00019073,2]
[386652477,1758450881081,-641.21583815,0.00019073,2]
[386652478,1758450881108,-500.0,0.00019073,2]
[386652479,1758450881138,-500.0,0.00019073,2]
[386652480,1758450881167,-500.0,0.00019073,2]
[386652481,1758450881195,-257.5285949,0.00019073,2]
[386652482,1758450881225,-500.0,0.00019073,2]
[386652483,1758450881369,-500.0,0.00019073,2]
[386652484,1758450881397,-500.0,0.00019073,2]
[386652485,1758450881427,-498.92390583,0.00019073,2]
[386652486,1758450881456,-500.0,0.00019073,2]
[386652487,1758450881486,-500.0,0.00019073,2]
[386652488,1758450881519,-500.0,0.00019073,2]
[386652489,1758450881549,-500.0,0.00019073,2]
[386652490,1758450881580,-500.0,0.00019073,2]
[386652491,1758450881611,-500.0,0.00019073,2]
[386652492,1758450898306,553.41207842,0.00019073,2]
[386652493,1758450898509,229.12445355,0.00019073,2]
[386652494,1758450902657,219.62565637,0.00019073,2]
[386652495,1758450902678,80.37434363,0.00019073,2]
[386652496,1758450904765,300.0,0.00019073,2]
[386652497,1758450907822,1200.0,0.00019073,2]
[386652498,1758450907874,300.0,0.00019073,2]
[386652499,1758450960243,302.66710251,0.000189,2]
[386652500,1758450963124,300.0,0.00019073,2]
[386652501,1758451005759,1000.0,0.00018172,2]
[386652502,1758451023438,300.0,0.00019073,2]
[386652503,1758451078377,302.48579235,0.000189,2]
[386652504,1758451079427,219.92,0.00015984,2]
[386652507,1758451277739,223.6871703,0.00018078,2]
[386652508,1758451312569,199.99012184,0.00019,3]
[386652509,1758451370815,666.0,0.00018077,2]
[386652510,1758451446928,8387.92691551,0.00018077,2]
[386652511,1758451446950,10000.01,0.00018077,2]
[386652512,1758451446973,5249.88451259,0.00018077,2]
[386652513,1758451482736,4750.12548741,0.00018077,2]
[386652514,1758451482761,10000.01,0.00018077,2]
[386652515,1758451482782,10000.01,0.00018077,2]
[386652516,1758451482804,10000.01,0.00018077,2]
[386652517,1758451482825,2343.77482709,0.00018077,2]
[386652520,1758451543959,312.554536,0.00018077,2]
[386652521,1758451607424,-500.0,0.00019074,2]
[386652522,1758451607453,-500.0,0.00019074,2]
[386652523,1758451607483,-500.0,0.00019074,2]
[386652524,1758451607537,-500.0,0.00019074,2]
[386652525,1758451607567,-500.0,0.00019074,2]
[386652526,1758451607598,-500.0,0.00019074,2]
[386652527,1758451607628,-464.11901698,0.00019074,2]
[386652528,1758451607662,-500.0,0.00019074,2]
[386652529,1758451607692,-500.0,0.00019074,2]
[386652530,1758451607721,-383.86571067,0.00019074,2]
[386652531,1758451617239,-423.624422,0.00019074,2]
[386652532,1758451617270,-500.0,0.00019074,2]
[386652533,1758451617300,-500.0,0.00019074,2]
[386652534,1758451617331,-500.0,0.00019074,2]
[386652535,1758451617363,-374.8859732,0.00019074,2]
[386652536,1758451617395,-500.0,0.00019074,2]
[386652537,1758451617427,-500.0,0.00019074,2]
[386652538,1758451617458,-346.35115466,0.00019074,2]
[386652539,1758451617485,-160.0,0.00019074,2]
[386652540,1758451617512,-300.0,0.00019074,2]
[386652541,1758451617540,-300.0,0.00019074,2]
[386652542,1758451627293,-1200.0,0.00019074,2]
[386652543,1758451627323,-248.68848214,0.00019075,2]
[386652544,1758451627352,-333.0,0.00019075,2]
[386652545,1758451627381,-300.0,0.00019077,2]
[386652546,1758451627409,-182.4142451,0.00019078,2]
[386652547,1758451636892,257.83903197,0.00019074,2]
[386652548,1758451637015,500.0,0.00019074,2]
[386652550,1758451657337,-500.0,0.00019074,2]
[386652551,1758451657370,-500.0,0.00019074,2]
[386652552,1758451657405,-368.86724419,0.00019074,2]
[386652554,1758451659766,757.043141,0.00018177,2]
[386652555,1758451677394,-500.0,0.00019074,2]
[386652556,1758451677424,-500.0,0.00019074,2]
[386652557,1758451677454,-500.0,0.00019074,2]
[386652558,1758451677483,-3379.17326543,0.00019078,2]
[386652559,1758451687422,-300.0,0.00019077,2]
[386652560,1758451687450,-241.66346914,0.00019078,2]
[386652561,1758451707642,-500.0,0.00019074,2]
[386652562,1758451707673,-500.0,0.00019074,2]
[386652563,1758451707703,-500.0,0.00019074,2]
[386652564,1758451707733,-500.0,0.00019074,2]
[386652565,1758451707764,-586.25554427,0.00019074,2]
[386652566,1758451707794,-620.0,0.00019074,2]
[386652567,1758451707823,-500.0,0.00019074,2]
[386652568,1758451707851,-160.43052283,0.00019074,2]
[386652569,1758451707878,-165.6562654,0.00019074,2]
[386652570,1758451717459,-4539.1140034,0.00019074,2]
[386652571,1758451717489,-258.86129436,0.00019077,2]
[386652572,1758451717518,-190.69848322,0.00019077,2]
[386652573,1758451745901,1331.0,0.00029222,60]
[386652611,1758451832218,-300.0,0.00019077,2]
[386652612,1758451832228,-300.0,0.00019077,2]
[386652614,1758451832237,-300.0,0.00019077,2]
[386652616,1758451832247,-218.0,0.00019077,2]
[386652617,1758451832256,-1200.0,0.00019077,2]
[386652618,1758451832265,-263.87621924,0.00019077,2]
[386652619,1758451832274,-603.62296655,0.00019077,2]
[386652620,1758451832284,-199.63449455,0.00019078,2]
[386652621,1758451832293,-30092.46067099,0.00019078,2]
[386652622,1758451832304,-14492.11459558,0.00019078,2]
[386652623,1758451832316,-5385.49628581,0.00019078,2]
[386652624,1758451832325,-39884.57566567,0.00019159,2]
[386652625,1758451832336,-1484.67,0.00019159,2]
[386652704,1758451838178,-2719.0605443,0.00019075,2]
[386652705,1758451838187,-8630.75433433,0.00019159,2]
[386652706,1758451838197,-3794.4487821,0.00019159,2]
[386652707,1758451838206,-995.0982512,0.00019159,2]
[386652708,1758451838216,-718.71,0.00019168,3]
[386652709,1758451838226,-359.35,0.00019168,3]
[386652710,1758451838235,-179.68,0.00019168,3]
[386652711,1758451838244,-539.06,0.00019168,3]
[386652712,1758451838254,-270.62,0.00019168,3]
[386652713,1758451838263,-811.91,0.00019168,3]
[386652714,1758451838272,-223.76,0.00019168,3]
[386652715,1758451838281,-500.0,0.00019173,2]
[386652716,1758451838291,-500.0,0.00019173,2]
[386652717,1758451838300,-500.0,0.00019173,2]
[386652718,1758451838309,-155.0,0.00019177,2]
[386652719,1758451838318,-480.0,0.00019178,2]
[386652720,1758451838328,-480.0,0.00019178,2]
[386652721,1758451838338,-483.49228185,0.00019178,2]
[386652722,1758451838348,-481.27927092,0.00019178,2]
[386652723,1758451838358,-480.0,0.00019178,2]
[386652724,1758451838366,-520.0,0.00019178,3]
[386652725,1758451838375,-480.88998327,0.00019178,2]
[386652726,1758451838385,-480.0,0.00019178,2]
[386652727,1758451838395,-480.0,0.00019178,2]
[386652728,1758451838403,-327.13339372,0.00019178,2]
[386652729,1758451838413,-480.0,0.00019178,2]
[386652730,1758451838422,-480.0,0.00019178,2]
[386652731,1758451838432,-503.38685104,0.00019178,2]
[386652732,1758451838442,-482.82137322,0.00019178,2]
[386652733,1758451838452,-482.2308827,0.00019178,2]
[386652734,1758451838461,-480.0,0.00019178,2]
[386652735,1758451838471,-480.0,0.00019178,2]
[386652736,1758451838481,-480.0,0.00019178,2]
[386652737,1758451838490,-314.07729072,0.00019178,2]
[386652738,1758451838500,-480.0,0.00019178,2]
[386652739,1758451838509,-490.48783455,0.00019178,2]
[386652740,1758451838519,-480.0,0.00019178,2]
[386652741,1758451838528,-480.0,0.00019178,2]
[386652742,1758451838538,-480.0,0.00019178,2]
[386652743,1758451838547,-480.0,0.00019178,2]
[386652744,1758451838557,-480.0,0.00019178,2]
[386652745,1758451838566,-480.0,0.00019178,2]
[386652746,1758451838575,-480.0,0.00019178,2]
[386652747,1758451838584,-480.0,0.00019178,2]
[386652748,1758451838594,-493.28223373,0.00019178,2]
[386652749,1758451838605,-480.0,0.00019178,2]
[386652750,1758451838614,-480.0,0.00019178,2]
[386652751,1758451838623,-480.0,0.00019178,2]
[386652752,1758451838633,-480.0,0.00019178,2]
[386652753,1758451838643,-480.0,0.00019178,2]
[386652754,1758451838652,-480.0,0.00019178,2]
[386652755,1758451838661,-480.0,0.00019178,2]
[386652756,1758451838671,-480.0,0.00019178,2]
[386652757,1758451838680,-480.0,0.00019178,2]
[386652758,1758451838689,-480.0,0.00019178,2]
[386652759,1758451838699,-480.0,0.00019178,2]
[386652760,1758451838708,-492.78299602,0.00019178,2]
[386652761,1758451838717,-480.0,0.00019178,2]
[386652762,1758451838726,-459.77851744,0.00019178,2]
[386652763,1758451838735,-240.48412745,0.00019178,2]
[386652764,1758451838745,-480.0,0.00019178,2]
[386652765,1758451838754,-480.0,0.00019178,2]
[386652766,1758451838763,-459.17285011,0.00019178,2]
[386652767,1758451838774,-480.0,0.00019178,2]
[386652768,1758451838783,-480.0,0.00019178,2]
[386652769,1758451838792,-480.0,0.00019178,2]
[386652770,1758451838801,-480.0,0.00019178,2]
[386652771,1758451838811,-480.0,0.00019178,2]
[386652772,1758451838820,-574.71225045,0.00019178,2]
[386652773,1758451838829,-480.0,0.00019178,2]
[386652774,1758451838838,-459.4226814,0.00019178,2]
[386652775,1758451838848,-480.0,0.00019178,2]
[386652776,1758451838858,-255.2389799,0.00019178,2]
[386652777,1758451838867,-480.0,0.00019178,2]
[386652778,1758451838876,-480.0,0.00019178,2]
[386652779,1758451838886,-480.0,0.00019178,2]
[386652780,1758451838895,-480.0,0.00019178,2]
[386652781,1758451838905,-480.0,0.00019178,2]
[386652782,1758451838914,-480.0,0.00019178,2]
[386652783,1758451838923,-480.0,0.00019178,2]
[386652784,1758451838932,-480.0,0.00019178,2]
[386652785,1758451838941,-480.0,0.00019178,2]
[386652786,1758451838950,-480.0,0.00019178,2]
[386652787,1758451838959,-480.0,0.00019178,2]
[386652788,1758451838968,-480.0,0.00019178,2]
[386652789,1758451838977,-480.0,0.00019178,2]
[386652790,1758451838986,-480.0,0.00019178,2]
[386652791,1758451838995,-480.0,0.00019178,2]
[386652792,1758451839004,-480.0,0.00019178,2]
[386652793,1758451839013,-480.0,0.00019178,2]
[386652794,1758451839022,-480.0,0.00019178,2]
[386652795,1758451839031,-510.48866658,0.00019178,2]
[386652796,1758451839040,-480.0,0.00019178,2]
[386652797,1758451839053,-485.68706803,0.00019178,2]
[386652798,1758451839063,-480.0,0.00019178,2]
[386652799,1758451839072,-480.0,0.00019178,2]
[386652800,1758451839081,-480.0,0.00019178,2]
[386652801,1758451839090,-480.0,0.00019178,2]
[386652802,1758451839099,-480.0,0.00019178,2]
[386652803,1758451839108,-480.0,0.00019178,2]
[386652804,1758451839117,-480.0,0.00019178,2]
[386652805,1758451839126,-480.0,0.00019178,2]
[386652806,1758451839136,-480.0,0.00019178,2]
[386652807,1758451839146,-480.0,0.00019178,2]
[386652808,1758451839155,-480.0,0.00019178,2]
[386652809,1758451839164,-480.0,0.00019178,2]
[386652810,1758451839173,-480.0,0.00019178,2]
[386652811,1758451839182,-480.0,0.00019178,2]
[386652812,1758451839191,-480.0,0.00019178,2]
[386652813,1758451839200,-480.0,0.00019178,2]
[386652814,1758451839210,-480.0,0.00019178,2]
[386652815,1758451839220,-480.0,0.00019178,2]
[386652816,1758451839229,-480.0,0.00019178,2]
[386652817,1758451839238,-480.0,0.00019178,2]
[386652818,1758451839247,-480.0,0.00019178,2]
[386652819,1758451839257,-480.0,0.00019178,2]
[386652820,1758451839266,-861.84,0.00019178,2]
[386652821,1758451839275,-480.0,0.00019178,2]
[386652822,1758451839285,-484.61679755,0.00019178,2]
[386652823,1758451839294,-581.01115105,0.00019178,2]
[386652824,1758451839303,-480.0,0.00019178,2]
[386652825,1758451839312,-480.0,0.00019178,2]
[386652826,1758451839321,-452.47414476,0.00019178,2]
[386652827,1758451839331,-935.99,0.00019178,2]
[386652828,1758451839340,-480.0,0.00019178,2]
[386652829,1758451839350,-480.0,0.00019178,2]
[386652830,1758451839359,-480.0,0.00019178,2]
[386652831,1758451839370,-482.1615795,0.00019178,2]
[386652832,1758451839380,-480.0,0.00019178,2]
[386652833,1758451839389,-480.0,0.00019178,2]
[386652834,1758451839399,-480.0,0.00019178,2]
[386652835,1758451839408,-480.0,0.00019178,2]
[386652836,1758451839418,-483.98563472,0.00019178,2]
[386652837,1758451839427,-480.0,0.00019178,2]
[386652838,1758451839436,-480.0,0.00019178,2]
[386652839,1758451839445,-480.0,0.00019178,2]
[386652840,1758451839455,-480.0,0.00019178,2]
[386652841,1758451839464,-480.0,0.00019178,2]
[386652842,1758451839473,-480.0,0.00019178,2]
[386652843,1758451839482,-480.0,0.00019178,2]
[386652844,1758451839492,-480.0,0.00019178,2]
[386652845,1758451839501,-480.0,0.00019178,2]
[386652846,1758451839510,-480.0,0.00019178,2]
[386652847,1758451839520,-480.0,0.00019178,2]
[386652848,1758451839529,-530.57,0.00019178,2]
[386652849,1758451839539,-452.174895,0.00019178,2]
[386652850,1758451839548,-480.0,0.00019178,2]
[386652851,1758451839558,-480.0,0.00019178,2]
[386652852,1758451839567,-480.0,0.00019178,2]
[386652853,1758451839576,-480.0,0.00019178,2]
[386652854,1758451839586,-480.0,0.00019178,2]
[386652855,1758451839595,-480.0,0.00019178,2]
[386652856,1758451839604,-480.0,0.00019178,2]
[386652857,1758451839614,-506.20285795,0.00019178,2]
[386652858,1758451839624,-480.0,0.00019178,2]
[386652859,1758451839634,-480.0,0.00019178,2]
[386652860,1758451839643,-480.0,0.00019178,2]
[386652861,1758451839652,-1522.15,0.00019178,2]
[386652862,1758451839662,-481.3734126,0.00019178,2]
[386652863,1758451839672,-480.0,0.00019178,2]
[386652864,1758451839681,-480.0,0.00019178,2]
[386652865,1758451839691,-480.0,0.00019178,2]
[386652866,1758451839699,-481.82001868,0.00019178,2]
[386652867,1758451839708,-480.0,0.00019178,2]
[386652868,1758451839718,-480.0,0.00019178,2]
[386652869,1758451839727,-480.0,0.00019178,2]
[386652870,1758451839736,-411.10947399,0.00019178,2]
[386652871,1758451839745,-480.0,0.00019178,2]
[386652872,1758451839754,-480.0,0.00019178,2]
[386652873,1758451839764,-480.0,0.00019178,2]
[386652874,1758451839775,-480.0,0.00019178,2]
[386652875,1758451839785,-480.0,0.00019178,2]
[386652876,1758451839794,-480.0,0.00019178,2]
[386652878,1758451839804,-480.0,0.00019178,2]
[386652880,1758451839813,-480.0,0.00019178,2]
[386652882,1758451839823,-1988.96,0.00019178,2]
[386652884,1758451839832,-480.0,0.00019178,2]
[386652886,1758451839841,-480.0,0.00019178,2]
[386652888,1758451839852,-480.0,0.00019178,2]
[386652890,1758451839862,-480.0,0.00019178,2]
[386652892,1758451839872,-480.0,0.00019178,2]
[386652894,1758451839881,-480.0,0.00019178,2]
[386652896,1758451839890,-480.0,0.00019178,2]
[386652898,1758451839900,-480.0,0.00019178,2]
[386652900,1758451839910,-480.0,0.00019178,2]
[386652902,1758451839919,-480.0,0.00019178,2]
[386652904,1758451839928,-480.0,0.00019178,2]
[386652906,1758451839937,-498.90486648,0.00019178,2]
[386652908,1758451839946,-480.0,0.00019178,2]
[386652910,1758451839955,-484.25849667,0.00019178,2]
[386652912,1758451839965,-480.0,0.00019178,2]
[386652914,1758451839974,-480.0,0.00019178,2]
[386652916,1758451839984,-480.0,0.00019178,2]
[386652918,1758451839993,-480.0,0.00019178,2]
[386652920,1758451840002,-480.0,0.00019178,2]
[386652922,1758451840011,-480.0,0.00019178,2]
[386652924,1758451840020,-480.0,0.00019178,2]
[386652926,1758451840029,-480.0,0.00019178,2]
[386652928,1758451840038,-483.18757761,0.00019178,2]
[386652930,1758451840053,-300.0,0.00019178,2]
[386652932,1758451840062,-480.0,0.00019178,2]
[386652934,1758451840072,-480.0,0.00019178,2]
[386652936,1758451840081,-480.0,0.00019178,2]
[386652938,1758451840091,-480.0,0.00019178,2]
[386652940,1758451840101,-486.56315369,0.00019178,2]
[386652942,1758451840111,-480.0,0.00019178,2]
[386652945,1758451840121,-1000.0,0.00019178,2]
[386652947,1758451840131,-480.0,0.00019178,2]
[386652948,1758451840140,-480.0,0.00019178,2]
[386652950,1758451840149,-480.0,0.00019178,2]
[386652952,1758451840158,-429.57942864,0.00019178,2]
[386652954,1758451840167,-480.0,0.00019178,2]
[386652956,1758451840177,-557.88,0.00019178,2]
[386652958,1758451840186,-480.0,0.00019178,2]
[386652960,1758451840195,-480.0,0.00019178,2]
[386652962,1758451840204,-1814.27,0.00019178,2]
[386652964,1758451840213,-480.0,0.00019178,2]
[386652966,1758451840224,-480.0,0.00019178,2]
[386652968,1758451840233,-480.0,0.00019178,2]
[386652970,1758451840242,-480.0,0.00019178,2]
[386652972,1758451840251,-480.0,0.00019178,2]
[386652974,1758451840261,-480.0,0.00019178,2]
[386652976,1758451840270,-480.0,0.00019178,2]
[386652978,1758451840279,-480.0,0.00019178,2]
[386652980,1758451840288,-480.0,0.00019178,2]
[386652982,1758451840297,-480.0,0.00019178,2]
[386652984,1758451840307,-480.0,0.00019178,2]
[386652986,1758451840316,-480.0,0.00019178,2]
[386652988,1758451840326,-480.0,0.00019178,2]
[386652990,1758451840335,-480.0,0.00019178,2]
[386652992,1758451840344,-480.0,0.00019178,2]
[386652994,1758451840354,-480.0,0.00019178,2]
[386652996,1758451840364,-480.0,0.00019178,2]
[386652998,1758451840373,-480.0,0.00019178,2]
[386653000,1758451840383,-480.0,0.00019178,2]
[386653002,1758451840393,-480.0,0.00019178,2]
[386653004,1758451840403,-480.0,0.00019178,2]
[386653006,1758451840412,-480.0,0.00019178,2]
[386653008,1758451840422,-480.0,0.00019178,2]
[386653010,1758451840431,-852.0,0.00019178,2]
[386653012,1758451840441,-480.0,0.00019178,2]
[386653014,1758451840450,-480.0,0.00019178,2]
[386653016,1758451840460,-2934.94,0.00019178,2]
[386653018,1758451840469,-480.0,0.00019178,2]
[386653020,1758451840479,-480.0,0.00019178,2]
[386653022,1758451840488,-393.12125384,0.00019178,2]
[386653024,1758451840498,-480.0,0.00019178,2]
[386653026,1758451840507,-480.0,0.00019178,2]
[386653028,1758451840516,-877.9,0.00019178,2]
[386653030,1758451840526,-204.22262354,0.00019178,2]
[386653032,1758451840535,-480.0,0.00019178,2]
[386653034,1758451840544,-480.0,0.00019178,2]
[386653036,1758451840554,-480.0,0.00019178,2]
[386653037,1758451840564,-480.0,0.00019178,2]
[386653039,1758451840574,-489.92318404,0.00019178,2]
[386653041,1758451840583,-480.0,0.00019178,2]
[386653043,1758451840593,-480.0,0.00019178,2]
[386653045,1758451840603,-480.0,0.00019178,2]
[386653047,1758451840612,-480.0,0.00019178,2]
[386653049,1758451840621,-487.04948459,0.00019178,2]
[386653051,1758451840631,-480.0,0.00019178,2]
[386653053,1758451840640,-480.0,0.00019178,2]
[386653055,1758451840649,-886.63,0.00019178,2]
[386653057,1758451840658,-494.08952021,0.00019178,2]
[386653059,1758451840667,-480.0,0.00019178,2]
[386653061,1758451840677,-480.0,0.00019178,2]
[386653063,1758451840686,-480.0,0.00019178,2]
[386653065,1758451840695,-480.0,0.00019178,2]
[386653067,1758451840705,-480.0,0.00019178,2]
[386653069,1758451840714,-480.0,0.00019178,2]
[386653071,1758451840724,-480.0,0.00019178,2]
[386653073,1758451840733,-480.0,0.00019178,2]
[386653075,1758451840742,-480.0,0.00019178,2]
[386653077,1758451840751,-480.0,0.00019178,2]
[386653079,1758451840760,-480.0,0.00019178,2]
[386653081,1758451840769,-480.0,0.00019178,2]
[386653082,1758451840779,-1154.68,0.00019178,2]
[386653083,1758451840787,-480.0,0.00019178,2]
[386653084,1758451840796,-480.0,0.00019178,2]
[386653085,1758451840805,-480.0,0.00019178,2]
[386653086,1758451840815,-480.0,0.00019178,2]
[386653087,1758451840824,-480.0,0.00019178,2]
[386653088,1758451840833,-480.0,0.00019178,2]
[386653089,1758451840842,-480.0,0.00019178,2]
[386653090,1758451840851,-480.0,0.00019178,2]
[386653091,1758451840860,-477.03,0.00019178,2]
[386653092,1758451840869,-483.23268833,0.00019178,2]
[386653093,1758451840879,-480.0,0.00019178,2]
[386653094,1758451840887,-480.0,0.00019178,2]
[386653095,1758451840896,-480.0,0.00019178,2]
[386653096,1758451840905,-480.0,0.00019178,2]
[386653097,1758451840914,-480.0,0.00019178,2]
[386653098,1758451840923,-480.0,0.00019178,2]
[386653099,1758451840932,-480.0,0.00019178,2]
[386653100,1758451840941,-480.0,0.00019178,2]
[386653101,1758451840950,-480.0,0.00019178,2]
[386653102,1758451840959,-588.1483793,0.00019178,2]
[386653103,1758451840967,-480.0,0.00019178,2]
[386653104,1758451840976,-481.5207303,0.00019178,2]
[386653105,1758451840985,-480.0,0.00019178,2]
[386653106,1758451840995,-480.0,0.00019178,2]
[386653107,1758451841003,-480.0,0.00019178,2]
[386653108,1758451841012,-480.0,0.00019178,2]
[386653109,1758451841021,-480.0,0.00019178,2]
[386653110,1758451841030,-480.0,0.00019178,2]
[386653111,1758451841039,-10502.96,0.00019178,2]
[386653112,1758451841047,-586.27,0.00019178,2]
[386653113,1758451841056,-480.0,0.00019178,2]
[386653114,1758451841065,-480.0,0.00019178,2]
[386653115,1758451841074,-480.0,0.00019178,2]
[386653116,1758451841083,-485.83832746,0.00019178,2]
[386653117,1758451841092,-768.24,0.00019178,2]
[386653118,1758451841101,-987.82,0.00019178,2]
[386653119,1758451841110,-480.0,0.00019178,2]
[386653121,1758451841119,-480.0,0.00019178,2]
[386653122,1758451841128,-480.0,0.00019178,2]
[386653123,1758451841137,-480.0,0.00019178,2]
[386653125,1758451841146,-480.0,0.00019178,2]
[386653127,1758451841155,-480.0,0.00019178,2]
[386653129,1758451841164,-480.0,0.00019178,2]
[386653131,1758451841173,-480.0,0.00019178,2]
[386653133,1758451841182,-480.0,0.00019178,2]
[386653135,1758451841191,-530.61,0.00019178,2]
[386653137,1758451841200,-480.0,0.00019178,2]
[386653139,1758451841209,-1896.42,0.00019178,2]
[386653141,1758451841218,-480.0,0.00019178,2]
[386653143,1758451841227,-480.0,0.00019178,2]
[386653145,1758451841236,-480.0,0.00019178,2]
[386653147,1758451841244,-491.81959489,0.00019178,2]
[386653149,1758451841255,-480.0,0.00019178,2]
[386653151,1758451841264,-342.35565529,0.00019178,2]
[386653153,1758451841273,-480.0,0.00019178,2]
[386653155,1758451841282,-484.37043733,0.00019178,2]
[386653157,1758451841291,-480.0,0.00019178,2]
[386653159,1758451841303,-480.0,0.00019178,2]
[386653161,1758451841311,-480.0,0.00019178,2]
[386653163,1758451841320,-480.0,0.00019178,2]
[386653165,1758451841330,-480.0,0.00019178,2]
[386653167,1758451841338,-480.0,0.00019178,2]
[386653168,1758451841347,-480.0,0.00019178,2]
[386653170,1758451841356,-482.97775326,0.00019178,2]
[386653172,1758451841366,-480.0,0.00019178,2]
[386653175,1758451841376,-480.0,0.00019178,2]
[386653176,1758451841385,-970.28,0.00019178,2]
[386653178,1758451841394,-482.06689307,0.00019178,2]
[386653180,1758451841403,-480.0,0.00019178,2]
[386653182,1758451841412,-480.0,0.00019178,2]
[386653184,1758451841421,-480.0,0.00019178,2]
[386653203,1758451841583,-480.0,0.00019178,2]
[386653205,1758451841592,-480.0,0.00019178,2]
[386653207,1758451841602,-519.16,0.00019178,2]
[386653209,1758451841611,-596.32335783,0.00019178,2]
[386653211,1758451841620,-481.56633022,0.00019178,2]
[386653213,1758451841629,-480.0,0.00019178,2]
[386653215,1758451841639,-1102.68,0.00019178,2]
[386653217,1758451841648,-480.0,0.00019178,2]
[386653219,1758451841657,-480.0,0.00019178,2]
[386653221,1758451841666,-480.0,0.00019178,2]
[386653223,1758451841675,-480.0,0.00019178,2]
[386653225,1758451841684,-480.0,0.00019178,2]
[386653227,1758451841693,-481.68550207,0.00019178,2]
[386653229,1758451841703,-480.0,0.00019178,2]
[386653231,1758451841711,-480.0,0.00019178,2]
[386653233,1758451841720,-480.0,0.00019178,2]
[386653235,1758451841730,-650.16,0.00019178,2]
[386653237,1758451841739,-480.0,0.00019178,2]
[386653239,1758451841748,-480.0,0.00019178,2]
[386653241,1758451841757,-864.96,0.00019178,2]
[386653243,1758451841767,-480.0,0.00019178,2]
[386653245,1758451841775,-480.0,0.00019178,2]
[386653247,1758451841785,-480.0,0.00019178,2]
[386653249,1758451841794,-480.0,0.00019178,2]
[386653251,1758451841803,-480.0,0.00019178,2]
[386653253,1758451841812,-480.0,0.00019178,2]
[386653255,1758451841821,-480.0,0.00019178,2]
[386653257,1758451841831,-496.15901956,0.00019178,2]
[386653259,1758451841840,-480.0,0.00019178,2]
[386653261,1758451841850,-480.0,0.00019178,2]
[386653263,1758451841859,-480.0,0.00019178,2]
[386653265,1758451841868,-490.21519446,0.00019178,2]